fUST/lending_fUST_20250930
["ID","MTS","AMOUNT","RATE_DAILY","PERIOD"]
[388490347,1759209871808,-485.36,0.0001955,2]
[388490348,1759209871837,-518.03,0.0001955,2]
[388490349,1759209871865,-480.0,0.0001955,2]
[388490350,1759209871893,-480.0,0.0001955,2]
[388490351,1759209872047,-1231.35,0.0001955,2]
[388490352,1759209872076,-774.53,0.0001955,2]
[388490353,1759209872106,-480.0,0.0001955,2]
[388490354,1759209872135,-480.0,0.0001955,2]
[388490355,1759209872162,-480.0,0.0001955,2]
[388490356,1759209872191,-480.0,0.0001955,2]
[388490357,1759209872218,-480.0,0.0001955,2]
[388490358,1759209872245,-480.0,0.0001955,2]
[388490359,1759209872538,-480.0,0.0001955,2]
[388490360,1759209872566,-480.0,0.0001955,2]
[388490361,1759209872593,-480.0,0.0001955,2]
[388490362,1759209872621,-1441.99,0.0001955,2]
[388490363,1759209872650,-480.0,0.0001955,2]
[388490364,1759209872678,-762.69,0.0001955,2]
[388490365,1759209872706,-500.0,0.0001955,2]
[388490366,1759209872735,-250.65,0.0001955,2]
[388490367,1759209872871,-249.35,0.0001955,2]
[388490368,1759209872900,-480.0,0.0001955,2]
[388490369,1759209872928,-480.0,0.0001955,2]
[388490370,1759209873089,-480.0,0.0001955,2]
[388490371,1759209873119,-529.7,0.0001955,2]
[388490372,1759209873147,-480.0,0.0001955,2]
[388490373,1759209873176,-480.0,0.0001955,2]
[388490374,1759209873204,-480.0,0.0001955,2]
[388490375,1759209873231,-480.0,0.0001955,2]
[388490376,1759209873259,-480.0,0.0001955,2]
[388490377,1759209873291,-281.91,0.0001955,2]
[388490378,1759209873434,-198.09,0.0001955,2]
[388490379,1759209873466,-510.68,0.0001955,2]
[388490380,1759209873500,-480.0,0.0001955,2]
[388490381,1759209873531,-480.0,0.0001955,2]
[388490382,1759209873559,-480.0,0.0001955,2]
[388490383,1759209873591,-480.0,0.0001955,2]
[388490384,1759209873619,-480.0,0.0001955,2]
[388490385,1759209873649,-480.0,0.0001955,2]
[388490386,1759209873678,-480.0,0.0001955,2]
[388490387,1759209873705,-480.0,0.0001955,2]
[388490388,1759209873733,-422.47,0.0001955,2]
[388490389,1759209879003,-500.0,0.00019549,2]
[388490390,1759209879035,-960.45,0.00019549,2]
[388490391,1759209879067,-57.53,0.0001955,2]
[388490392,1759209879100,-480.0,0.0001955,2]
[388490393,1759209879131,-480.0,0.0001955,2]
[388490394,1759209879163,-480.0,0.0001955,2]
[388490395,1759209879193,-480.0,0.0001955,2]
[388490396,1759209879225,-480.0,0.0001955,2]
[388490397,1759209879255,-480.0,0.0001955,2]
[388490398,1759209879282,-480.0,0.0001955,2]
[388490399,1759209879404,-480.0,0.0001955,2]
[388490400,1759209879432,-480.0,0.0001955,2]
[388490401,1759209879459,-480.0,0.0001955,2]
[388490402,1759209879487,-480.0,0.0001955,2]
[388490403,1759209879515,-480.0,0.0001955,2]
[388490404,1759209879542,-738.13,0.0001955,2]
[388490405,1759209879570,-571.89353867,0.0001955,2]
[388490406,1759209879598,-480.0,0.0001955,2]
[388490407,1759209879625,-480.0,0.0001955,2]
[388490408,1759209879771,-3945.29,0.0001955,2]
[388490409,1759209879799,-480.0,0.0001955,2]
[388490410,1759209879828,-480.0,0.0001955,2]
[388490411,1759209879938,-480.0,0.0001955,2]
[388490412,1759209879974,-480.0,0.0001955,2]
[388490413,1759209880004,-480.0,0.0001955,2]
[388490414,1759209880032,-699.49,0.0001955,2]
[388490415,1759209880062,-480.0,0.0001955,2]
[388490416,1759209880092,-480.0,0.0001955,2]
[388490417,1759209880120,-480.0,0.0001955,2]
[388490418,1759209880523,2841.03,0.00019549,2]
[388490419,1759209880545,10000.01,0.00019549,2]
[388490420,1759209884063,-5000.0,0.00019353,2]
[388490421,1759209884895,-3728.64273276,0.00019549,2]
[388490422,1759209884939,-10000.01,0.00019549,2]
[388490423,1759209885085,-10000.01,0.00019549,2]
[388490424,1759209888690,-10000.01,0.00019549,2]
[388490425,1759209888813,-10000.01,0.00019549,2]
[388490426,1759209888950,-10000.01,0.00019549,2]
[388490427,1759209889101,-10000.01,0.00019549,2]
[388490428,1759209889228,-10000.01,0.00019549,2]
[388490429,1759209889809,-10000.01,0.00019549,2]
[388490430,1759209889962,-10000.01,0.00019549,2]
[388490433,1759209893409,-5000.0,0.00019354,2]
[388490434,1759209893448,-0.01,0.00019549,2]
[388490435,1759209893531,-3305.23626424,0.00019549,2]
[388490436,1759209893562,-480.0,0.00019549,2]
[388490437,1759209893590,-480.0,0.00019549,2]
[388490438,1759209893619,-480.0,0.0001955,2]
[388490439,1759209893654,-29.53747152,0.0001955,2]
[388490440,1759209893748,-450.46252848,0.0001955,2]
[388490441,1759209893781,-1134.07,0.0001955,2]
[388490442,1759209893810,-170.77522972,0.0001955,2]
[388490443,1759209893840,-480.0,0.0001955,2]
[388490444,1759209893874,480.0,0.0001955,2]
[388490445,1759209895857,480.0,0.0001955,2]
[388490446,1759209897047,480.0,0.0001955,2]
[388490447,1759209900126,480.0,0.0001955,2]
[388490448,1759209901660,191.0,0.0001955,2]
[388490449,1759209904436,169.0,0.00019154,2]
[388490450,1759209914691,4958.31477268,0.00019396,2]
[388490453,1759209926983,666.0,0.00018583,2]
[388490465,1759210103192,2390.88023311,0.00019396,2]
[388490467,1759210203811,-159.2550529,0.00019448,2]
[388490468,1759210203842,-1342.67724306,0.00019451,2]
[388490469,1759210203875,-2650.87540808,0.00019541,3]
[388490470,1759210204087,-1694.39459192,0.00019541,3]
[388490471,1759210204119,-331.4105788,0.00019548,2]
[388490472,1759210204151,-638.11208363,0.00019548,2]
[388490473,1759210204184,-500.0,0.00019548,2]
[388490474,1759210204214,-577.53266194,0.00019548,2]
[388490475,1759210204246,-175.51016724,0.00019548,2]
[388490476,1759210204278,-500.0,0.00019548,2]
[388490477,1759210204309,-500.0,0.00019548,2]
[388490478,1759210204475,-500.0,0.00019548,2]
[388490479,1759210204507,-199.01980084,0.00019548,2]
[388490480,1759210204542,-336.17011858,0.00019548,2]
[388490481,1759210204573,-1200.0,0.00019548,2]
[388490482,1759210204603,-471.27315943,0.00019548,2]
[388490483,1759210204636,-500.0,0.00019548,2]
[388490484,1759210204668,-188.22425841,0.00019548,2]
[388490485,1759210204732,-500.0,0.00019548,2]
[388490486,1759210204793,-500.0,0.00019548,2]
[388490487,1759210204851,-500.0,0.00019548,2]
[388490488,1759210204999,-500.0,0.00019548,2]
[388490489,1759210205031,-500.0,0.00019548,2]
[388490490,1759210205064,-500.0,0.00019548,2]
[388490491,1759210205096,-251.79966792,0.00019548,2]
[388490492,1759210205127,-500.0,0.00019548,2]
[388490493,1759210205159,-500.0,0.00019548,2]
[388490494,1759210205190,-500.0,0.00019548,2]
[388490495,1759210205220,-600.28,0.00019548,2]
[388490496,1759210205249,-480.0,0.00019548,2]
[388490497,1759210205450,-480.0,0.00019548,2]
[388490498,1759210205544,-480.0,0.00019548,2]
[388490499,1759210205572,-480.0,0.00019548,2]
[388490500,1759210205602,-480.0,0.00019548,2]
[388490501,1759210205632,-297.48597191,0.00019548,2]
[388490502,1759210205663,-480.0,0.00019548,2]
[388490503,1759210206680,-7889.01,0.00019549,2]
[388490504,1759210206718,-2172.63,0.0001954,3]
[388490505,1759210206727,-7827.38,0.00019549,2]
[388490506,1759210206779,-10000.01,0.00019549,2]
[388490507,1759210206806,-10000.01,0.00019549,2]
[388490508,1759210206830,-10000.01,0.00019549,2]
[388490509,1759210209930,-1343.0,0.00019396,2]
[388490510,1759210209961,-1200.0,0.00019547,2]
[388490511,1759210209989,-630.43,0.00019549,2]
[388490512,1759210210040,-3653.15,0.00019549,2]
[388490513,1759210210071,-480.0,0.00019549,2]
[388490514,1759210210099,-481.74453916,0.00019549,2]
[388490515,1759210210129,-480.0,0.00019549,2]
[388490516,1759210210155,-480.0,0.00019549,2]
[388490517,1759210210184,-480.0,0.00019549,2]
[388490518,1759210210213,-480.0,0.00019549,2]
[388490519,1759210210241,-480.0,0.00019549,2]
[388490520,1759210210270,-480.0,0.00019549,2]
[388490521,1759210210298,-480.0,0.00019549,2]
[388490522,1759210210329,-480.0,0.00019549,2]
[388490523,1759210210569,-480.0,0.00019549,2]
[388490524,1759210210610,-483.20249278,0.00019549,2]
[388490525,1759210210639,-480.0,0.00019549,2]
[388490526,1759210210667,-396.08,0.00019549,2]
[388490527,1759210210696,-480.0,0.00019549,2]
[388490528,1759210210725,-524.12,0.00019549,2]
[388490529,1759210210754,-480.0,0.00019549,2]
[388490530,1759210210783,-730.91,0.00019549,2]
[388490531,1759210210816,-480.0,0.00019549,2]
[388490532,1759210210847,-449.36472841,0.00019549,2]
[388490533,1759210211380,-32.65555762,0.00019549,2]
[388490534,1759210211390,-449.36472841,0.00019549,2]
[388490535,1759210218695,-188.94593185,0.00019548,2]
[388490536,1759210218724,-173.4821229,0.00019548,2]
[388490537,1759210218755,-500.0,0.00019548,2]
[388490538,1759210218786,-500.0,0.00019548,2]
[388490539,1759210218816,-500.0,0.00019548,2]
[388490540,1759210218848,-500.0,0.00019548,2]
[388490541,1759210218878,-500.0,0.00019548,2]
[388490542,1759210218909,-500.0,0.00019548,2]
[388490543,1759210218939,-500.0,0.00019548,2]
[388490544,1759210218971,-500.0,0.00019548,2]
[388490545,1759210219005,-500.0,0.00019548,2]
[388490546,1759210219116,-500.0,0.00019548,2]
[388490547,1759210219149,-500.0,0.00019548,2]
[388490548,1759210219180,-315.87732951,0.00019548,2]
[388490549,1759210219211,-515.13372831,0.00019548,2]
[388490550,1759210219241,-500.0,0.00019548,2]
[388490551,1759210219283,-369.29908175,0.00019548,2]
[388490552,1759210219317,-500.0,0.00019548,2]
[388490553,1759210219348,-317.61051524,0.00019548,2]
[388490554,1759210219379,-500.0,0.00019548,2]
[388490555,1759210219411,-500.0,0.00019548,2]
[388490556,1759210219442,-464.16869038,0.00019548,2]
[388490557,1759210219730,-35.83130962,0.00019548,2]
[388490558,1759210219923,-500.0,0.00019548,2]
[388490559,1759210219957,-500.0,0.00019548,2]
[388490560,1759210219987,-174.0,0.00019548,2]
[388490561,1759210220017,-480.0,0.00019548,2]
[388490562,1759210220047,-480.0,0.00019548,2]
[388490563,1759210220076,-30.63527159,0.00019549,2]
[388490564,1759210220107,-480.0,0.00019549,2]
[388490565,1759210220136,-480.0,0.00019549,2]
[388490566,1759210220165,-234.62,0.00019549,2]
[388490567,1759210220194,-480.0,0.00019549,2]
[388490568,1759210220224,-526.19,0.00019549,2]
[388490569,1759210220254,-480.0,0.00019549,2]
[388490570,1759210220335,-480.0,0.00019549,2]
[388490571,1759210220364,-480.0,0.00019549,2]
[388490572,1759210220394,-483.24548293,0.00019549,2]
[388490573,1759210220424,-670.35,0.00019549,2]
[388490574,1759210220452,-607.67,0.00019549,2]
[388490575,1759210220485,-480.0,0.00019549,2]
[388490576,1759210220516,-480.0,0.00019549,2]
[388490577,1759210220543,-480.0,0.00019549,2]
[388490578,1759210220572,-167.1,0.00019549,2]
[388490579,1759210220601,-480.0,0.00019549,2]
[388490580,1759210220718,-480.0,0.00019549,2]
[388490581,1759210220749,-541.01,0.00019549,2]
[388490582,1759210220780,-3780.9,0.00019549,2]
[388490583,1759210220809,-112.0,0.00019549,2]
[388490584,1759210220950,-172.19,0.00019549,2]
[388490585,1759210220980,-480.0,0.00019549,2]
[388490586,1759210221009,-3377.06,0.00019549,2]
[388490587,1759210221141,-1941.51,0.00019549,2]
[388490588,1759210221171,-569.63,0.00019549,2]
[388490589,1759210221199,-480.0,0.00019549,2]
[388490590,1759210221230,-496.44,0.00019549,2]
[388490591,1759210221259,-480.0,0.00019549,2]
[388490592,1759210221288,-535.24,0.00019549,2]
[388490593,1759210221317,-480.0,0.00019549,2]
[388490594,1759210221360,-480.0,0.00019549,2]
[388490595,1759210221389,-480.0,0.00019549,2]
[388490596,1759210221416,-480.0,0.00019549,2]
[388490597,1759210221443,-742.26,0.00019549,2]
[388490598,1759210221475,-480.0,0.00019549,2]
[388490599,1759210221505,-480.0,0.00019549,2]
[388490600,1759210221533,-590.19,0.00019549,2]
[388490601,1759210221564,-480.0,0.00019549,2]
[388490602,1759210221592,-480.0,0.00019549,2]
[388490603,1759210221621,-37.65,0.00019549,2]
[388490604,1759210223021,-539.81,0.00019549,2]
[388490605,1759210223030,-151.1,0.0001955,2]
[388490606,1759210223047,-328.9,0.0001955,2]
[388490607,1759210223057,-151.1,0.0001955,2]
[388490608,1759210223074,-328.9,0.0001955,2]
[388490609,1759210223083,-151.1,0.0001955,2]
[388490610,1759210223099,-590.19,0.0001955,2]
[388490611,1759210223116,-2.24,0.0001955,2]
[388490612,1759210223125,-477.76,0.0001955,2]
[388490613,1759210223142,-2.24,0.0001955,2]
[388490614,1759210223151,-477.76,0.0001955,2]
[388490615,1759210223172,-2.24,0.0001955,2]
[388490616,1759210223182,-480.0,0.0001955,2]
[388490617,1759210223191,-95.22,0.0001955,2]
[388490618,1759210225924,-499.39,0.0001955,2]
[388490619,1759210225956,-480.0,0.0001955,2]
[388490620,1759210225985,-480.0,0.0001955,2]
[388490621,1759210226014,-480.0,0.0001955,2]
[388490622,1759210226043,-509.20470844,0.0001955,2]
[388490623,1759210226072,-480.0,0.0001955,2]
[388490624,1759210226102,-480.0,0.0001955,2]
[388490625,1759210226130,-561.69,0.0001955,2]
[388490626,1759210226159,-689.61,0.0001955,2]
[388490627,1759210226340,-480.0,0.00019549,2]
[388490628,1759210226369,-875.84,0.0001955,2]
[388490629,1759210226398,-480.0,0.0001955,2]
[388490630,1759210226426,-481.79363369,0.0001955,2]
[388490631,1759210226454,-480.0,0.0001955,2]
[388490632,1759210226486,-533.09,0.0001955,2]
[388490633,1759210226515,-746.92,0.0001955,2]
[388490634,1759210226544,-389.43746735,0.0001955,2]
[388490635,1759210226574,-480.0,0.0001955,2]
[388490636,1759210226642,-480.0,0.0001955,2]
[388490637,1759210226671,-216.40184526,0.0001955,2]
[388490638,1759210226700,-482.03824376,0.0001955,2]
[388490639,1759210226729,-480.0,0.0001955,2]
[388490640,1759210226758,-1793.86,0.0001955,2]
[388490641,1759210226788,-1251.13,0.0001955,2]
[388490642,1759210226824,-111.08545761,0.0001955,2]
[388490643,1759210227102,-370.97890674,0.0001955,2]
[388490644,1759210227132,-988.82,0.0001955,2]
[388490645,1759210227163,-482.83744441,0.0001955,2]
[388490646,1759210227192,-743.82,0.0001955,2]
[388490647,1759210227220,-500.0,0.0001955,2]
[388490648,1759210227249,-171.83511111,0.0001955,2]
[388490649,1759210227279,-480.0,0.0001955,2]
[388490650,1759210227310,-480.0,0.0001955,2]
[388490651,1759210227341,-480.0,0.0001955,2]
[388490652,1759210227374,-122.20767493,0.0001955,2]
[388490653,1759210227817,-359.01172562,0.0001955,2]
[388490654,1759210227849,-480.0,0.0001955,2]
[388490655,1759210227881,-1877.51249793,0.0001955,2]
[388490656,1759210227911,-217.37057049,0.0001955,2]
[388490657,1759210227939,-480.0,0.0001955,2]
[388490658,1759210227967,-480.0,0.0001955,2]
[388490659,1759210227995,-482.58139132,0.0001955,2]
[388490660,1759210228023,-480.0,0.0001955,2]
[388490661,1759210228495,-156.84993039,0.0001955,2]
[388490662,1759210228515,-323.15006961,0.0001955,2]
[388490663,1759210228524,-156.84993039,0.0001955,2]
[388490664,1759210228541,-323.15006961,0.0001955,2]
[388490665,1759210228549,-159.43132171,0.0001955,2]
[388490666,1759210228566,-320.56867829,0.0001955,2]
[388490667,1759210228575,-159.43132171,0.0001955,2]
[388490668,1759210228591,-287.05762928,0.0001955,2]
[388490700,1759210231823,-33.51104901,0.0001955,2]
[388490701,1759210231832,-482.69877662,0.0001955,2]
[388490702,1759210231841,-481.08212739,0.0001955,2]
[388490703,1759210231850,-480.0,0.0001955,2]
[388490704,1759210231859,-480.0,0.0001955,2]
[388490705,1759210231867,-480.0,0.0001955,2]
[388490706,1759210231876,-480.0,0.0001955,2]
[388490707,1759210231885,-480.0,0.0001955,2]
[388490709,1759210231895,-480.0,0.0001955,2]
[388490711,1759210231903,-536.39,0.0001955,2]
[388490713,1759210231913,-610.03110424,0.0001955,2]
[388490716,1759210231922,-480.0,0.0001955,2]
[388490719,1759210231930,-480.0,0.0001955,2]
[388490722,1759210231939,-540.57658608,0.0001955,2]
[388490724,1759210231948,-480.0,0.0001955,2]
[388490726,1759210231957,-482.80554116,0.0001955,2]
[388490728,1759210231965,-480.0,0.0001955,2]
[388490731,1759210231974,-480.0,0.0001955,2]
[388490732,1759210231983,-589.54,0.0001955,2]
[388490733,1759210231993,-480.0,0.0001955,2]
[388490734,1759210232002,-480.0,0.0001955,2]
[388490735,1759210232011,-480.0,0.0001955,2]
[388490736,1759210232019,-480.0,0.0001955,2]
[388490737,1759210232029,-480.0,0.0001955,2]
[388490738,1759210232038,-480.0,0.0001955,2]
[388490739,1759210232047,-480.0,0.0001955,2]
[388490740,1759210232056,-480.0,0.0001955,2]
[388490741,1759210232064,-151.0,0.0001955,2]
[388490742,1759210232073,-151.0,0.0001955,2]
[388490743,1759210232082,-151.0,0.0001955,2]
[388490744,1759210232091,-480.0,0.0001955,2]
[388490745,1759210232100,-344.38781744,0.0001955,2]
[388490757,1759210237773,-480.0,0.00019548,2]
[388490758,1759210237782,-866.04,0.00019548,2]
[388490759,1759210237792,-480.0,0.00019548,2]
[388490760,1759210237802,-135.61218256,0.0001955,2]
[388490761,1759210237812,-151.0,0.0001955,2]
[388490762,1759210237822,-154.25766748,0.0001955,2]
[388490763,1759210237832,-51770.04524135,0.00019551,2]
[388490764,1759210237841,-285.97298243,0.000196,2]
[388490765,1759210237850,-1086.32,0.0001964,3]
[388490766,1759210237859,-543.16,0.0001964,3]
[388490767,1759210237868,-151.0,0.00019641,3]
[388490768,1759210237877,-151.0,0.00019641,3]
[388490769,1759210237887,-500.0,0.00019641,3]
[388490770,1759210237896,-500.0,0.00019641,3]
[388490771,1759210237906,-500.0,0.00019649,2]
[388490772,1759210237917,-635.50610429,0.00019649,2]
[388490773,1759210237927,-483.14053441,0.0001965,2]
[388490774,1759210237936,-480.0,0.0001965,2]
[388490775,1759210237945,-490.19,0.0001965,2]
[388490776,1759210237954,-480.0,0.0001965,2]
[388490777,1759210237963,-480.0,0.0001965,2]
[388490778,1759210237972,-480.0,0.0001965,2]
[388490779,1759210237981,-480.0,0.0001965,2]
[388490780,1759210237990,-480.0,0.0001965,2]
[388490781,1759210237999,-480.0,0.0001965,2]
[388490782,1759210238009,-619.94758197,0.0001965,2]
[388490783,1759210238018,-480.0,0.0001965,2]
[388490784,1759210238027,-480.0,0.0001965,2]
[388490785,1759210238036,-480.0,0.0001965,2]
[388490786,1759210238045,-480.0,0.0001965,2]
[388490787,1759210238054,-480.0,0.0001965,2]
[388490788,1759210238063,-500.0,0.0001965,2]
[388490789,1759210238073,-500.0,0.0001965,2]
[388490790,1759210238082,-500.0,0.0001965,2]
[388490791,1759210238090,-500.0,0.0001965,2]
[388490792,1759210238100,-480.0,0.0001965,2]
[388490793,1759210238109,-480.0,0.0001965,2]
[388490794,1759210238118,-480.0,0.0001965,2]
[388490795,1759210238127,-480.0,0.0001965,2]
[388490796,1759210238136,-480.0,0.0001965,2]
[388490797,1759210238145,-480.0,0.0001965,2]
[388490798,1759210238155,-480.0,0.0001965,2]
[388490799,1759210238164,-480.0,0.0001965,2]
[388490800,1759210238173,-563.63729053,0.0001965,2]
[388490801,1759210238183,-480.0,0.0001965,2]
[388490802,1759210238192,-480.0,0.0001965,2]
[388490803,1759210238202,-480.0,0.0001965,2]
[388490804,1759210238211,-483.15134198,0.0001965,2]
[388490805,1759210238220,-480.0,0.0001965,2]
[388490806,1759210238230,-480.0,0.0001965,2]
[388490807,1759210238241,-480.0,0.0001965,2]
[388490808,1759210238250,-480.0,0.0001965,2]
[388490809,1759210238259,-480.0,0.0001965,2]
[388490810,1759210238268,-784.63,0.0001965,2]
[388490811,1759210238278,-480.0,0.0001965,2]
[388490812,1759210238287,-482.32932684,0.0001965,2]
[388490813,1759210238297,-480.0,0.0001965,2]
[388490814,1759210238306,-480.0,0.0001965,2]
[388490815,1759210238316,-594.81,0.0001965,2]
[388490816,1759210238325,-480.0,0.0001965,2]
[388490817,1759210238334,-480.0,0.0001965,2]
[388490818,1759210238344,-480.0,0.0001965,2]
[388490819,1759210238353,-240.92200031,0.0001965,2]
[388490820,1759210238361,-480.0,0.0001965,2]
[388490821,1759210238371,-482.0359118,0.0001965,2]
[388490822,1759210238380,-481.57195073,0.0001965,2]
[388490823,1759210238389,-482.38858414,0.0001965,2]
[388490824,1759210238398,-481.66849492,0.0001965,2]
[388490825,1759210238407,-480.0,0.0001965,2]
[388490826,1759210238417,-480.0,0.0001965,2]
[388490827,1759210238426,-484.57412845,0.0001965,2]
[388490828,1759210238435,-480.0,0.0001965,2]
[388490829,1759210238444,-761.34,0.0001965,2]
[388490830,1759210238453,-483.00573151,0.0001965,2]
[388490831,1759210238462,-481.86241576,0.0001965,2]
[388490832,1759210238474,-480.0,0.0001965,2]
[388490833,1759210238484,-480.0,0.0001965,2]
[388490834,1759210238493,-482.5373202,0.0001965,2]
[388490835,1759210238502,-480.0,0.0001965,2]
[388490836,1759210238512,-480.0,0.0001965,2]
[388490837,1759210238522,-390.85954179,0.0001965,2]
[388490838,1759210238531,-480.0,0.0001965,2]
[388490839,1759210238541,-500.0,0.0001965,2]
[388490840,1759210238552,-500.0,0.0001965,2]
[388490841,1759210238561,-958.9,0.0001965,2]
[388490842,1759210238569,-480.0,0.0001965,2]
[388490843,1759210238579,-480.0,0.0001965,2]
[388490844,1759210238587,-480.0,0.0001965,2]
[388490845,1759210238607,-480.0,0.0001965,2]
[388490846,1759210238619,-507.67603856,0.0001965,2]
[388490847,1759210238628,-485.44381427,0.0001965,2]
[388490848,1759210238638,-480.0,0.0001965,2]
[388490849,1759210238648,-687.19,0.0001965,2]
[388490850,1759210238657,-480.0,0.0001965,2]
[388490851,1759210238667,-480.0,0.0001965,2]
[388490852,1759210238677,-480.0,0.0001965,2]
[388490853,1759210238686,-606.32659559,0.0001965,2]
[388490854,1759210238696,-480.0,0.0001965,2]
[388490855,1759210238705,-480.0,0.0001965,2]
[388490856,1759210238714,-1201.5,0.0001965,2]
[388490857,1759210238724,-480.0,0.0001965,2]
[388490858,1759210238964,-480.0,0.0001965,2]
[388490859,1759210238974,-480.0,0.0001965,2]
[388490860,1759210238983,-524.35,0.0001965,2]
[388490861,1759210238993,-492.87,0.0001965,2]
[388490862,1759210239002,-480.0,0.0001965,2]
[388490863,1759210239012,-480.58,0.0001965,2]
[388490864,1759210239021,-482.58934596,0.0001965,2]
[388490865,1759210239031,-480.0,0.0001965,2]
[388490866,1759210239040,-480.0,0.0001965,2]
[388490867,1759210239050,-480.0,0.0001965,2]
[388490868,1759210239059,-480.0,0.0001965,2]
[388490869,1759210239068,-482.31839856,0.0001965,2]
[388490870,1759210239078,-584.63881179,0.0001965,2]
[388490871,1759210239087,-482.08179181,0.0001965,2]
[388490872,1759210239096,-480.0,0.0001965,2]
[388490873,1759210239105,-480.0,0.0001965,2]
[388490874,1759210239115,-480.0,0.0001965,2]
[388490875,1759210239124,-480.0,0.0001965,2]
[388490876,1759210239134,-481.58979332,0.0001965,2]
[388490877,1759210239143,-494.53,0.0001965,2]
[388490878,1759210239152,-301.05319687,0.0001965,2]
[388490879,1759210239162,-508.99,0.0001965,2]
[388490880,1759210239171,-481.81322176,0.0001965,2]
[388490881,1759210239180,-480.0,0.0001965,2]
[388490882,1759210239189,-607.17,0.0001965,2]
[388490883,1759210239197,-482.14426853,0.0001965,2]
[388490884,1759210239206,-480.0,0.0001965,2]
[388490885,1759210239215,-1335.74,0.0001965,2]
[388490886,1759210239224,-480.36054256,0.0001965,2]
[388490887,1759210239234,-500.0,0.0001965,2]
[388490888,1759210239243,-480.0,0.0001965,2]
[388490889,1759210239253,-481.20330159,0.0001965,2]
[388490890,1759210239261,-220.9230425,0.0001965,2]
[388490891,1759210239271,-480.0,0.0001965,2]
[388490892,1759210239280,-481.51672855,0.0001965,2]
[388490893,1759210239289,-480.0,0.0001965,2]
[388490894,1759210239299,-151.0,0.0001965,2]
[388490895,1759210239308,-482.25469242,0.0001965,2]
[388490896,1759210239317,-480.0,0.0001965,2]
[388490897,1759210239326,-500.0,0.0001965,2]
[388490898,1759210239335,-480.0,0.0001965,2]
[388490899,1759210239345,-482.18424568,0.0001965,2]
[388490900,1759210239354,-480.0,0.0001965,2]
[388490901,1759210239363,-482.21213068,0.0001965,2]
[388490902,1759210239372,-1123.71,0.0001965,2]
[388490903,1759210239381,-483.02111815,0.0001965,2]
[388490905,1759210239391,-369.90269406,0.0001965,2]
[388490906,1759210239400,-480.0,0.0001965,2]
[388490908,1759210239410,-484.85541488,0.0001965,2]
[388490909,1759210239419,-480.0,0.0001965,2]
[388490910,1759210239429,-482.36873644,0.0001965,2]
[388490911,1759210239438,-480.0,0.0001965,2]
[388490912,1759210239447,-572.56,0.0001965,2]
[388490913,1759210239456,-480.0,0.0001965,2]
[388490914,1759210239465,-475.97845953,0.0001965,2]
[388490915,1759210239478,-482.54762877,0.0001965,2]
[388490916,1759210239487,-480.0,0.0001965,2]
[388490917,1759210239496,-480.0,0.0001965,2]
[388490918,1759210239505,-482.57390337,0.0001965,2]
[388490919,1759210239514,-549.83,0.0001965,2]
[388490920,1759210239524,-480.0,0.0001965,2]